[Event "4th Nikity Blitz 2024"]
[Site "Niteroi"]
[Date "2024.08.31"]
[Round "9.3"]
[White "Porto, Cristiano Nogueira"]
[Black "Perdomo, Leandro"]
[Result "0-1"]
[ECO "C68"]
[WhiteElo "2217"]
[BlackElo "2359"]
[Annotator "RC"]
[PlyCount "57"]
[EventDate "2024.08.28"]
[EventType "swiss"]
[EventCountry "BRA"]
[SourceTitle "playchess.com"]
[Source "ChessBase"]
[SourceQuality "1"]
[TimeControl "180+2"]

1. e4 {[%emt 0:00:00]} e5 {[%emt 0:00:00]} 2. Nf3 {[%emt 0:00:01]} Nc6 {[%emt 0:00:01]} 3. Bb5 {[%emt 0:00:01]} a6 4. Bxc6 {[%emt 0:00:01]} dxc6 {[%emt 0:00:01]} 5. O-O {[%emt 0:00:02]} Bg4 {[%emt 0:00:00]} 6. h3 {[%emt 0:00:01]} Bh5 {[%emt 0:00:01]} 7. g4 {[%emt 0:00:05]} Bg6 {[%emt 0:00:01]} 8. Nxe5 {[%emt 0:00:01]} Bd6 {[%emt 0:00:12]} 9. Nf3 {[%emt 0:00:07]} h5 {[%emt 0:00:20]} 10. g5 {[%emt 0:00:04]} Qd7 {[%emt 0:00:06]} 11. Kg2 {[%emt 0:00:04]} O-O-O {[%emt 0:00:08]} 12. Nc3 {[%emt 0:00:01]} Bb4 {[%emt 0:00:31]} 13. d3 {[%emt 0:00:05]} Bxc3 {[%emt 0:00:03]} 14. bxc3 {[%emt 0:00:01]} Bxe4 {[%emt 0:00:01]} 15. Bf4 {[%emt 0:00:14]} Bf5 {[%emt 0:00:03]} 16. Rh1 {[%emt 0:00:22]} Ne7 {[%emt 0:00:01]} 17. Nd4 {[%emt 0:00:08]} Ng6 {[%emt 0:00:14]} 18. Bg3 {[%emt 0:00:29]} h4 {[%emt 0:00:02]} 19. Nxf5 {[%emt 0:00:18]} Qxf5 {[%emt 0:00:01]} 20. Bh2 {[%emt 0:00:07]} Qxg5+ {[%emt 0:00:01]} 21. Qg4+ {[%emt 0:00:07]} Qxg4+ {[%emt 0:00:01]} 22. hxg4 {[%emt 0:00:00]} h3+ {[%emt 0:00:37]} 23. Kf3 {[%emt 0:00:14]} f5 {[%emt 0:00:18]} 24. g5 {[%emt 0:00:15]} Rh5 {[%emt 0:00:15]} 25. Rhg1 {[%emt 0:00:16]} Nh4+ {[%emt 0:00:06]} 26. Kf4 {[%emt 0:00:15]} g6 {[%emt 0:00:12]} 27. Rg3 {[%emt 0:00:11]} Ng2+ {[%emt 0:00:07]} 28. Kf3 {[%emt 0:00:03]} Re8 {[%emt 0:00:05]} 29. Rxh3 {[%emt 0:00:27]} 0-1

[Event "4th Nikity Blitz 2024"]
[Site "Niteroi"]
[Date "2024.08.31"]
[Round "9.4"]
[White "De Souza, Regis Gabetta"]
[Black "Di Berardino, Diego Rafael"]
[Result "1-0"]
[ECO "A45"]
[WhiteElo "2116"]
[BlackElo "2472"]
[Annotator "TA"]
[PlyCount "85"]
[EventDate "2024.08.28"]
[EventType "swiss"]
[EventCountry "BRA"]
[SourceTitle "playchess.com"]
[Source "ChessBase"]
[SourceQuality "1"]
[TimeControl "180+2"]

{[%evp 9,85,8,3,13,17,19,22,18,35,27,84,85,289,58,117,116,145,67,82,73,75,72,80,75,88,88,95,35,28,28,28,28,28,28,44,47,81,37,47,45,38,37,56,17,35,32,43,43,118,50,81,83,76,-32,-49,-49,-39,-337,-346,-356,-362,-297,-213,-212,-199,-200,-200,-305,-245,-296,-200,-184,-195,-271,-254,-278,5129,5122]} 1. d4 {[%emt 0:00:03]} Nf6 {[%emt 0:00:01]} 2. Nc3 {[%emt 0:00:01]} e6 {[%emt 0:00:02]} 3. Bf4 {[%emt 0:00:02]} Bb4 {[%emt 0:00:01]} 4. Qd3 {[%emt 0:00:15]} d5 {[%emt 0:00:13]} 5. a3 {[%emt 0:00:03]} Bd6 {[%emt 0:00:08]} 6. Bxd6 {[%emt 0:00:28]} Qxd6 {[%emt 0:00:01]} 7. Nf3 {[%emt 0:00:03]} b6 {[%emt 0:00:04]} 8. e4 {[%emt 0:00:07] aiming for e5. The position is equal.} Ba6 {[%emt 0:00:09]} 9. Qe3 {[%emt 0:00:31]} Bxf1 {[%emt 0:00:20]} (9... dxe4 $11 {keeps the balance.} 10. Nxe4 Nxe4 11. Bxa6 (11. Qxe4 Qd5 $14) 11... Nxa6 12. Qxe4 c6) 10. e5 $16 {[%emt 0:00:11]} (10. Kxf1 dxe4 11. Nxe4 Nxe4 12. Qxe4 Qc6 $11) 10... Qf8 {[%emt 0:00:34]} (10... Ng4 $16 11. Qg5 (11. exd6 $2 {too greedy.} Nxe3 12. dxc7 Na6 $19) 11... Qf8 (11... Nxe5 $2 12. dxe5 Qf8 13. Rxf1 $18) 12. Kxf1 (12. Rxf1 Nh6 $16) 12... Nh6) 11. Kxf1 $2 {[%emt 0:00:06]} ({Weaker is} 11. Rxf1 Ng8 $14) (11. exf6 $18 Bxg2 12. Rg1 (12. Nxd5 Bxh1 13. Nxc7+ Kd7 $16) 12... gxf6 13. Rxg2) 11... Nfd7 {[%emt 0:00:02]} (11... Ng8 $14) 12. Nb5 {[%emt 0:00:07]} Na6 {[%emt 0:00:23]} 13. Qc3 {[%emt 0:00:10] White has more active pieces.} (13. Qb3 $16) 13... Qe7 $14 {[%emt 0:00:07]} 14. Nxc7+ {[%emt 0:00:07]} Nxc7 {[%emt 0:00:01]} 15. Qxc7 {[%emt 0:00:01]} O-O {[%emt 0:00:02] ...Rfc8 is the strong threat.} 16. Qc3 {[%emt 0:00:06]} Rac8 {[%emt 0:00:05]} 17. Qd2 {[%emt 0:00:01]} f6 {[%emt 0:00:02]} 18. exf6 {[%emt 0:00:02]} (18. Re1 $16) 18... Nxf6 {[%emt 0:00:02]} 19. c3 {[%emt 0:00:05]} Ne4 {[%emt 0:00:06]} 20. Qe3 {[%emt 0:00:01]} Qe8 {[%emt 0:00:25]} 21. h4 {[%emt 0:00:04]} Qb5+ {[%emt 0:00:02]} 22. Qe2 {[%emt 0:00:08]} Qb3 {[%emt 0:00:20]} 23. Re1 {[%emt 0:00:06]} Rf6 {[%emt 0:00:02]} 24. Rh3 {[%emt 0:00:02]} Rcf8 {[%emt 0:00:01]} 25. Kg1 {[%emt 0:00:02]} b5 {[%emt 0:00:03]} 26. Rc1 {[%emt 0:00:10]} a5 {[%emt 0:00:04]} 27. Qc2 {[%emt 0:00:12]} Qxc2 {[%emt 0:00:12]} 28. Rxc2 {[%emt 0:00:02]} Rc8 {[%emt 0:00:01]} (28... h6 $14) 29. Re2 {[%emt 0:00:03]} (29. Ne5 $16) 29... b4 {[%emt 0:00:03]} 30. cxb4 {[%emt 0:00:02]} axb4 {[%emt 0:00:00]} 31. Ne5 {[%emt 0:00:08]} ({Better is} 31. axb4 $16 {Black must now prevent Ng5.} Rb8 32. b5) 31... Rc1+ $15 {[%emt 0:00:02]} 32. Kh2 {[%emt 0:00:01]} Nxf2 {[%emt 0:00:05]} 33. Rf3 $2 {[%emt 0:00:06][%mdl 8192]} (33. Rxf2 $15 Rxf2 34. Nd3) 33... Rh1+ $19 {[%emt 0:00:02]} 34. Kg3 {[%emt 0:00:02]} Ne4+ {[%emt 0:00:02]} 35. Rxe4 {[%emt 0:00:15]} dxe4 {[%emt 0:00:02][%mdl 4096] Endgame. KRR-KRN} 36. Re3 {[%emt 0:00:05]} bxa3 {[%emt 0:00:12]} 37. bxa3 {[%emt 0:00:01]} Ra1 {[%emt 0:00:01]} 38. Nc4 {[%emt 0:00:03]} (38. Rxe4 $142 Rxa3+ 39. Nf3) 38... Rc1 {[%emt 0:00:06]} 39. Nd2 {[%emt 0:00:04]} Rc2 {[%emt 0:00:06]} 40. Nxe4 {[%emt 0:00:02] [#]} Rg6+ {[%emt 0:00:01]} 41. Kf4 {[%emt 0:00:05]} (41. Ng5 {might work better.}) 41... Rcxg2 {[%emt 0:00:03] ...R2g4+ would now be deadly.} 42. Ng5 {[%emt 0:00:07] [#]} Rg4+ $4 {[%emt 0:00:03][%mdl 8192]} 43. Kxg4 {[%emt 0:00:01] Both players deserved the win here.   Weighted Error Value: White=0.42/Black=0.29 (precise) .  Loses game:     	White=1     	Black=1      Missed win:     	White=1     	Black=1      Mistake:       	White=6     	Black=3      Inaccurate:     	White=2     	Black=3      OK:         	White=12    	Black=8      Best:        	White=6     	Black=3} 1-0

[Event "4th Nikity Blitz 2024"]
[Site "Niteroi"]
[Date "2024.08.31"]
[Round "9.5"]
[White "Filgueiras, Nathan Felipe"]
[Black "Ribeiro, Matheus Mendes Domin"]
[Result "0-1"]
[ECO "B45"]
[WhiteElo "2316"]
[BlackElo "2244"]
[Annotator "RC"]
[PlyCount "78"]
[EventDate "2024.08.28"]
[EventType "swiss"]
[EventCountry "BRA"]
[SourceTitle "playchess.com"]
[Source "ChessBase"]
[SourceQuality "1"]
[TimeControl "180+2"]

1. e4 {[%emt 0:00:02]} c5 {[%emt 0:00:00]} 2. Nf3 {[%emt 0:00:01]} e6 {[%emt 0:00:03]} 3. d4 {[%emt 0:00:01]} cxd4 {[%emt 0:00:01]} 4. Nxd4 {[%emt 0:00:01]} Nf6 {[%emt 0:00:01]} 5. Nc3 {[%emt 0:00:02]} Nc6 {[%emt 0:00:02]} 6. Ndb5 {[%emt 0:00:03]} Bb4 {[%emt 0:00:01]} 7. Bf4 {[%emt 0:00:25]} Nxe4 {[%emt 0:00:03]} 8. Qf3 {[%emt 0:00:12]} d5 {[%emt 0:00:02]} 9. Nc7+ {[%emt 0:00:01]} Kf8 {[%emt 0:00:01]} 10. O-O-O {[%emt 0:00:02]} Bxc3 {[%emt 0:00:01]} 11. bxc3 {[%emt 0:00:02]} e5 {[%emt 0:00:04]} 12. Nxd5 {[%emt 0:02:34]} f5 {[%emt 0:03:07]} 13. Bg3 {[%emt 0:00:00]} Qa5 {[%emt 0:00:00]} 14. Bc4 {[%emt 0:00:00]} Be6 {[%emt 0:00:00]} 15. Bb3 {[%emt 0:00:00]} Rd8 {[%emt 0:00:00]} 16. Nb4 {[%emt 0:00:00]} Ke7 {[%emt 0:00:00]} 17. Bh4+ {[%emt 0:00:00]} g5 {[%emt 0:00:00]} 18. Bg3 {[%emt 0:00:00]} Nxb4 {[%emt 0:00:00]} 19. cxb4 {[%emt 0:00:00]} Qa3+ {[%emt 0:00:00]} 20. Kb1 {[%emt 0:00:00]} Bxb3 {[%emt 0:00:02]} 21. axb3 {[%emt 0:00:00]} Nd2+ {[%emt 0:00:07]} 22. Rxd2 {[%emt 0:00:00]} Rxd2 {[%emt 0:00:02]} 23. Qxf5 {[%emt 0:00:00]} Rhd8 {[%emt 0:00:03]} 24. Qxe5+ {[%emt 0:00:24]} Kf7 25. Qf5+ {[%emt 0:00:00]} Kg8 {[%emt 0:00:06]} 26. Qxg5+ {[%emt 0:00:00]} Kf7 {[%emt 0:00:00]} 27. Qf5+ {[%emt 0:00:00]} Kg8 {[%emt 0:00:01]} 28. Qe6+ {[%emt 0:00:00]} Kf8 {[%emt 0:00:01]} 29. Qf5+ {[%emt 0:00:10]} Kg8 {[%emt 0:00:12]} 30. Qg5+ {[%emt 0:00:00]} Kf7 {[%emt 0:00:00]} 31. Qf4+ {[%emt 0:00:00]} Kg8 {[%emt 0:00:00]} 32. Qg4+ {[%emt 0:00:00]} Kf8 {[%emt 0:00:00]} 33. Be5 {[%emt 0:00:00]} Qa6 {[%emt 0:00:00]} 34. Qg7+ {[%emt 0:00:00]} Ke8 {[%emt 0:00:01]} 35. Qg8+ {[%emt 0:00:04]} Ke7 {[%emt 0:00:01]} 36. Qxh7+ {[%emt 0:00:02]} Ke6 {[%emt 0:00:01]} 37. Qe4 {[%emt 0:00:03]} Rd1+ {[%emt 0:00:01]} 38. Rxd1 {[%emt 0:00:00]} Rxd1+ {[%emt 0:00:01]} 39. Kb2 {[%emt 0:00:03]} Qa1# 0-1